Cogmind - Beta 13 @@@ ROGUE MODE // 2024.04.27 @ 14:16:49 Player: tartine Result: Destroyed by S-27 Virus with Autogun Performance ------------- Evolutions (3) 1500 Regions Visited (8) 1600 Robots Destroyed (53) 265 Value Destroyed (1538) 1538 Prototype IDs (2) 40 Alien Tech Used (0) 0 Bonus (16) 16 TOTAL SCORE: 4959 Bonus ------- High Alert Combat Kills 16 Cogmind --------- Core Integrity 0/700 Matter 146/300 Energy 99/100 System Corruption 0% Temperature Cool (0) Movement Core (50) Location -6/Proximity Caves Parts ------- > --- POWER (2) -------- (None) > --- PROPULSION (3) --- (None) > --- UTILITY (5) ------ Signal Interpreter > --- WEAPON (3) ------- (None) > --- INVENTORY (5) ---- Large Storage Unit Heart of Steel Makeshift Laser Peak State ------------ > --- POWER ------------ Light Ion Engine Light Deuterium Engine > --- PROPULSION ------- Titanium Leg Compact Wheel > --- UTILITY ---------- Cooling System Medium Storage Unit Signal Interpreter Improved Power Shielding Hardened Medium Armor Plating > --- WEAPON ----------- Shock Rifle Barrage Gun Flak Gun > --- INVENTORY -------- Ion Engine Improved Light Armor Plating System Shield Heart of Steel EM Pulse Gun Heavy Assault Rifle Flak Gun Mini Grenade Launcher [Rating: 32] Favorites ----------- Power Improved Ion Engine Engine Improved Ion Engine Propulsion Compact Wheel Treads Armored Treads Leg Titanium Leg Wheel Compact Wheel Utility Signal Interpreter Device Cooling System Storage Medium Storage Unit Processor Signal Interpreter Protection Hardened Medium Armor Plating Weapon EM Pulse Gun Energy Gun EM Pulse Gun Ballistic Gun Flak Gun Ballistic Cannon Light Cannon Launcher Mini Grenade Launcher Build | -11 -10 -9 -8 -7 -7 -7 -7 -6 ------- Run | Yrd Mat Mat Mat Fac Low Low Zio Pro Slots Evolved 6 | . . 2 2 2 . . . . Power 1 | . . . . 1 . . . . Propulsion 1 | . . . 1 . . . . . Utility 3 | . . 2 . 1 . . . . Weapon 1 | . . . 1 . . . . . Parts Attached 78 | 8 18 18 3 4 7 17 1 2 Power 13 | 1 2 3 1 2 . 4 . . Engine 13 | 1 2 3 1 2 . 4 . . Core . | . . . . . . . . . Reactor . | . . . . . . . . . Propulsion 16 | 4 4 4 . 1 1 2 . . Treads 1 | . . . . . . 1 . . Leg 6 | . 4 1 . . . 1 . . Wheel 9 | 4 . 3 . 1 1 . . . Hover . | . . . . . . . . . Flight . | . . . . . . . . . Utility 19 | 1 4 4 1 1 1 4 1 2 Device 9 | . 2 3 . . . 1 1 2 Storage 3 | 1 . 1 1 . . . . . Processor 2 | . 2 . . . . . . . Hackware . | . . . . . . . . . Protection 5 | . . . . 1 1 3 . . Artifact . | . . . . . . . . . Weapon 30 | 2 8 7 1 . 5 7 . . Energy Gun 16 | 1 8 3 1 . 2 1 . . Energy Cannon . | . . . . . . . . . Ballistic Gun 8 | 1 . 2 . . 1 4 . . Ballistic Cannon 1 | . . 1 . . . . . . Launcher 5 | . . 1 . . 2 2 . . Special Weapon . | . . . . . . . . . Impact Weapon . | . . . . . . . . . Slashing Weapon . | . . . . . . . . . Piercing Weapon . | . . . . . . . . . Special Melee Weapon . | . . . . . . . . . Unidentified Prototypes 2 | . . . . . . . 1 1 Parts Lost 32 | . 6 6 . . 5 9 . 6 Power 5 | . 1 1 . . . 2 . 1 Propulsion 8 | . 2 1 . . 3 . . 2 Utility 9 | . 1 2 . . 1 3 . 2 Weapon 10 | . 2 2 . . 1 4 . 1 Highest Loss Streak 6 | . 4 1 . . 2 5 . 6 To Critical Strikes . | . . . . . . . . . Average Slot Usage (%) 83 | . 92 87 90 100 96 88 92 42 Engine 12 | . 14 9 9 15 15 14 15 5 Treads 1 | . . . . . . 2 7 2 Leg 4 | . 13 . . . . 5 7 2 Wheel 11 | . 12 16 18 23 20 7 7 2 Device 10 | . 9 16 18 15 14 7 10 6 Storage 6 | . 4 11 9 7 7 7 7 2 Processor 8 | . 9 11 9 7 7 7 7 7 Protection 5 | . . . . 7 7 12 11 2 Energy Gun 9 | . 21 13 27 23 15 1 . . Ballistic Gun 6 | . 6 1 . . 4 16 7 2 Ballistic Cannon 1 | . . 7 . . . . . . Launcher 2 | . . . . . 2 3 7 3 Naked Turns . | . . . . . . . . . Heaviest Build 44 | 11 12 21 27 40 42 44 32 30 Greatest Support 42 | 32 20 32 32 42 42 16 16 16 Greatest Overweight (x) 4 | . 2 4 . . 2 2 1 3 Average Overweight (x) . | . . . . . . 1 1 . Largest Inventory Capacity 10 | 8 8 8 10 10 10 10 10 10 Average Capacity 8 | 7 5 8 9 10 10 10 10 7 Most Carried 10 | 5 5 8 9 8 10 10 9 10 Average Carried 6 | 2 3 5 5 6 8 7 7 6 Final Capacity 10 | 8 5 8 10 10 10 10 10 5 Final Carried 10 | 2 4 6 9 7 10 7 9 5 Class Distribution -------------------- 27% | Mutant 20% | Scavenger-Tank 18% | Derelict-Mutant 15% | Scavenger-Mutant 9% | Tank 4% | Derelict-Tank 3% | Skirmisher Dominant Class ---------------- Mutant | -10/Materials Scavenger-Mutant | -9/Materials Skirmisher | -8/Materials Scavenger-Tank | -7/Factory Scavenger-Tank | -7/Lower Caves Scavenger-Tank | -7/Lower Caves Derelict-Mutant | -7/Zion Mutant | -6/Proximity Caves Resources | -11 -10 -9 -8 -7 -7 -7 -7 -6 ----------- Run | Yrd Mat Mat Mat Fac Low Low Zio Pro Matter Collected 1755 | 227 212 383 71 . 169 527 10 156 Remotely . | . . . . . . . . . Salvage Created 1867 | 42 470 729 24 . 86 516 . . Parts 113 | 6 30 58 5 . 5 9 . . Haulers Intercepted . | . . . . . . . . . Recyclers Shooed 1 | . 1 . . . . . . . Parts Field Recycled . | . . . . . . . . . Retrieved Matter . | . . . . . . . . . Parts Self-Destructed 15 | . . . . . 5 6 1 3 Prevented . | . . . . . . . . . Kills | -11 -10 -9 -8 -7 -7 -7 -7 -6 ------- Run | Yrd Mat Mat Mat Fac Low Low Zio Pro Combat Hostiles Destroyed 40 | . 8 20 . . 3 9 . . Guns 24 | . 8 10 . . 2 4 . . Cannons 6 | . . 6 . . . . . . AOE 10 | . . 4 . . 1 5 . . Classes Destroyed 12 | 1 4 6 . . . 1 . . Worker 1 | . 1 . . . . . . . Builder 2 | . . 1 1 . . . . . Tunneler 3 | 2 . 1 . . . . . . Recycler 2 | . . 2 . . . . . . Mechanic 1 | . . 1 . . . . . . Operator 1 | . 1 . . . . . . . Watcher 3 | . 3 . . . . . . . Swarmer 11 | . . 7 . . 2 2 . . Grunt 24 | . 8 11 . . . 5 . . Duelist 1 | . . 1 . . . . . . Sentry 3 | . . 1 . . 1 1 . . Hunter 1 | . . . . . . 1 . . Packrat 3 | . . . . . . 3 . . Best Kill Streak 8 | 2 6 8 1 . 2 4 . . Combat Bots Only 5 | . 3 5 . . 2 4 . . Max Kills in Single Turn 4 | 1 1 4 1 . 2 2 . . Gunslinging . | . . . . . . . . . Exploded 4 | . . 4 . . 1 2 . . Melee . | . . . . . . . . . Uniques/NPCs Destroyed . | . . . . . . . . . Combat | -11 -10 -9 -8 -7 -7 -7 -7 -6 -------- Run | Yrd Mat Mat Mat Fac Low Low Zio Pro Hostile Shots Fired 363 | . 45 52 3 . 79 91 . 93 Missed 112 | . 7 17 1 . 30 22 . 35 Damage Taken 3417 | . 481 518 36 . 637 946 . 799 Core 969 | . 80 185 . . 58 167 . 479 Absorbed by Shields 309 | . . . . . . 241 . 68 Redirected to Shielding 186 | . . . . . . 159 . 27 Core Remaining (%) 80 | 100 68 53 100 . . . . . Volleys Fired 164 | 2 44 77 4 . 8 29 . . Largest 3 | 2 2 2 3 . 3 3 . . Hottest 146 | 70 115 105 146 . 134 106 . . Shots Fired 356 | 4 86 152 12 . 18 84 . . Gun 287 | 4 86 94 12 . 14 77 . . Cannon 57 | . . 57 . . . . . . Launcher 12 | . . 1 . . 4 7 . . Special . | . . . . . . . . . Kinetic 165 | 2 22 63 . . 5 73 . . Thermal 123 | 2 40 70 8 . 3 . . . Explosive 12 | . . 1 . . 4 7 . . Electromagnetic 56 | . 24 18 4 . 6 4 . . Robot Hit Streak 19 | 2 19 15 1 . 6 8 . . Robot Miss Streak 8 | . 4 3 1 . 4 8 . . Penetration Max . | . . . . . . . . . Secondary Targets 3 | . 3 . . . . . . . Max Gunslinging Chain 1 | . 1 . . . . . . . Shots Hit Robots 189 | 2 52 75 1 . 9 50 . . Core Hits 113 | 2 20 34 1 . 11 45 . . Critical Kills . | . . . . . . . . . Critical Parts Destroyed 1 | . 1 . . . . . . . Critical Strikes 2 | . 1 1 . . . . . . Destroy 1 | . 1 . . . . . . . Blast 1 | . . 1 . . . . . . Melee Attacks . | . . . . . . . . . Impact . | . . . . . . . . . Slashing . | . . . . . . . . . Piercing . | . . . . . . . . . Sneak Attacks . | . . . . . . . . . Combat Hostiles . | . . . . . . . . . Follow-up Attacks . | . . . . . . . . . Damage Inflicted 3582 | 24 708 1391 13 . 292 1154 . . Guns 2371 | 24 708 734 13 . 176 716 . . Cannons 429 | . . 429 . . . . . . Explosions 766 | . . 212 . . 116 438 . . Melee . | . . . . . . . . . Ramming 16 | . . 16 . . . . . . Kinetic 1348 | . 102 484 . . 90 672 . . Thermal 1055 | 24 391 583 13 . 44 . . . Explosive 720 | . . 166 . . 116 438 . . Electromagnetic 443 | . 215 142 . . 42 44 . . Impact . | . . . . . . . . . Slashing . | . . . . . . . . . Piercing . | . . . . . . . . . Highest Corruption 1 | . . . . 1 1 1 1 . Average Corruption 1 | . . . . 1 1 1 1 . Corruption Purged . | . . . . . . . . . Corruption Blocked . | . . . . . . . . . Effects 13 | . . . . 1 5 7 . . Message Errors 2 | . . . . . 1 1 . . Matter Fused 5 | . . . . 1 2 2 . . Energy Discharges 3 | . . . . . 1 2 . . Data Loss (minor) 2 | . . . . . . 2 . . Data Loss (major) 1 | . . . . . 1 . . . Overload Shots . | . . . . . . . . . Overflow Damage 58 | . . 53 . . 5 . . . Projectiles . | . . . . . . . . . Explosions 58 | . . 53 . . 5 . . . Melee . | . . . . . . . . . Knockbacks 3 | . . 3 . . . . . . Impact . | . . . . . . . . . Kinetic 3 | . . 3 . . . . . . Secondary . | . . . . . . . . . Self-Inflicted Damage 228 | . . 125 . . 93 10 . . Shots 7 | . . 3 . . 2 2 . . Rammed 1 | . . 1 . . . . . . Targets Rammed 1 | . . 1 . . . . . . Kicked . | . . . . . . . . . Crushed . | . . . . . . . . . Highest Temperature 216 | 30 216 67 9 . 54 170 . 3 Average Temperature 39 | 18 52 14 4 . 25 56 . 3 Received Heat Transfer 1028 | . 234 165 18 . 201 208 . 202 Siege Activations . | . . . . . . . . . Robots Corrupted . | . . . . . . . . . Combat Hostiles . | . . . . . . . . . Parts Fried . | . . . . . . . . . Impact Corruptions . | . . . . . . . . . Robots Melted . | . . . . . . . . . Combat Hostiles . | . . . . . . . . . Parts Melted . | . . . . . . . . . Heat Transferred 2677 | 74 1036 1419 37 . 111 . . . Parts Sabotaged 4 | . . . . . . . . 4 Parts Stolen . | . . . . . . . . . Parts Stripped . | . . . . . . . . . Power Chain Reactions 1 | . . 1 . . . . . . Alert | -11 -10 -9 -8 -7 -7 -7 -7 -6 ------- Run | Yrd Mat Mat Mat Fac Low Low Zio Pro Peak Influence 501 | 10 140 501 190 93 . . . . Initial 154 | . 6 12 154 86 . . . . Average 110 | 2 52 174 169 91 . . . . Maximum Alert Level 2 | . . 2 . . . . . . Low Security (%) 83 | 100 100 58 100 100 . . . . Level 1 15 | . . 38 . . . . . . Level 2 . | . . 2 . . . . . . Level 3 . | . . . . . . . . . Level 4 . | . . . . . . . . . Level 5 . | . . . . . . . . . High Security . | . . . . . . . . . Max Security . | . . . . . . . . . Squads Dispatched 10 | . 4 3 . 1 . 1 . 1 Investigation 7 | . 2 3 . 1 . 1 . . Extermination . | . . . . . . . . . Reinforcement 2 | . 2 . . . . . . . Assault 1 | . . . . . . . . 1 Garrison . | . . . . . . . . . Intercept . | . . . . . . . . . Searches Triggered . | . . . . . . . . . Construction Impeded . | . . . . . . . . . Haulers Reinforced . | . . . . . . . . . Active Scanning Responses . | . . . . . . . . . Cargo Convoy Interrupts . | . . . . . . . . . Stealth | -11 -10 -9 -8 -7 -7 -7 -7 -6 --------- Run | Yrd Mat Mat Mat Fac Low Low Zio Pro Distress Signals 4 | . 2 2 . . . . . . Communications Jammed . | . . . . . . . . . Distress Signals . | . . . . . . . . . Times Spotted 106 | . 13 32 3 . 13 15 . 30 Peak Tracking Total 16 | . 4 8 . . 6 7 . 16 Tactical Retreats 16 | . 1 3 . . 3 2 . 7 Traps | -11 -10 -9 -8 -7 -7 -7 -7 -6 ------- Run | Yrd Mat Mat Mat Fac Low Low Zio Pro Traps Triggered 7 | . 5 1 . 1 . . . . Indirectly . | . . . . . . . . . Trap Hack Attempts . | . . . . . . . . . Triggered . | . . . . . . . . . Disarmed . | . . . . . . . . . Reprogrammed . | . . . . . . . . . Reused . | . . . . . . . . . Traps Extracted . | . . . . . . . . . Installed 1 | . . . . . . 1 . . Triggered . | . . . . . . . . . Most Traps Carried 1 | . . . . . . 1 . . Machines | -11 -10 -9 -8 -7 -7 -7 -7 -6 ---------- Run | Yrd Mat Mat Mat Fac Low Low Zio Pro Machines Disabled 9 | . 2 4 2 . . 1 . . Max in Single Turn 2 | . 1 2 1 . . 1 . . Machines Repaired . | . . . . . . . . . Machines Dismantled . | . . . . . . . . . Machines Sabotaged . | . . . . . . . . . Overloaded Fab Kills . | . . . . . . . . . Hacking | -11 -10 -9 -8 -7 -7 -7 -7 -6 --------- Run | Yrd Mat Mat Mat Fac Low Low Zio Pro Machines Accessed 12 | . 4 4 . 1 . 3 . . Terminals 10 | . 4 4 . 1 . 1 . . Fabricators . | . . . . . . . . . Repair Stations . | . . . . . . . . . Recycling Units . | . . . . . . . . . Scanalyzers . | . . . . . . . . . Garrison Access . | . . . . . . . . . Total Hacks 33 | . 12 12 . 4 . 5 . . Successful 14 | . 6 2 . 1 . 5 . . Failed 19 | . 6 10 . 3 . . . . Catastrophic 6 | . 1 4 . 1 . . . . Database Lockouts . | . . . . . . . . . Manual 21 | . 8 13 . . . . . . Terminals 31 | . 12 12 . 4 . 3 . . Fabricators . | . . . . . . . . . Repair Stations . | . . . . . . . . . Recycling Units . | . . . . . . . . . Scanalyzers . | . . . . . . . . . Garrison Access . | . . . . . . . . . Terminal Hacks 10 | . 4 . . 1 . 5 . . Record 3 | . . . . . . 3 . . Part Schematic 1 | . . . . 1 . . . . Robot Analysis 1 | . 1 . . . . . . . Open Door 2 | . . . . . . 2 . . Alert Level 1 | . 1 . . . . . . . Patrol Status 1 | . 1 . . . . . . . Hauler Manifests 1 | . 1 . . . . . . . Fabricator Hacks . | . . . . . . . . . Repair Station Hacks . | . . . . . . . . . Recycling Unit Hacks . | . . . . . . . . . Scanalyzer . | . . . . . . . . . Garrison Access Hacks . | . . . . . . . . . Unauthorized Hacks 4 | . 2 2 . . . . . . Terminals 4 | . 2 2 . . . . . . Assimilate 2 | . 1 1 . . . . . . Operators 2 | . 1 1 . . . . . . Fabricators . | . . . . . . . . . Repair Stations . | . . . . . . . . . Recycling Units . | . . . . . . . . . Scanalyzers . | . . . . . . . . . Garrison Access . | . . . . . . . . . Data Cores Recovered . | . . . . . . . . . Used . | . . . . . . . . . Hacking Detections 9 | . 3 4 . 1 . 1 . . Full Trace Events 7 | . 1 4 . 1 . 1 . . Feedback Events 1 | . . . . 1 . . . . Corruption 1 | . . . . 1 . . . . Feedback Blocked . | . . . . . . . . . Robot Schematics Acquired 3 | . . . . . . . 3 . Robots Built . | . . . . . . . . . Authchips . | . . . . . . . . . Time . | . . . . . . . . . Total Robot Build Rating . | . . . . . . . . . Part Schematics Acquired 15 | . . . . 1 . . 14 . Parts Built . | . . . . . . . . . Authchips . | . . . . . . . . . Time . | . . . . . . . . . Total Part Build Rating . | . . . . . . . . . Parts Repaired . | . . . . . . . . . Time . | . . . . . . . . . Parts Recycled . | . . . . . . . . . Recycled Matter . | . . . . . . . . . Retrieved Matter . | . . . . . . . . . Retrieved Components . | . . . . . . . . . Parts Scanalyzed . | . . . . . . . . . Part Schematics Acquired . | . . . . . . . . . Parts Damaged . | . . . . . . . . . Bothacking | -11 -10 -9 -8 -7 -7 -7 -7 -6 ------------ Run | Yrd Mat Mat Mat Fac Low Low Zio Pro Used RIF Installer . | . . . . . . . . . Robots Hacked . | . . . . . . . . . Non-combat . | . . . . . . . . . Combat . | . . . . . . . . . Robot Hacks Applied . | . . . . . . . . . Relay Couplers Released . | . . . . . . . . . Fabnet Peak Effective % . | . . . . . . . . . Robots Rewired . | . . . . . . . . . Allies Hacked . | . . . . . . . . . Hacks Repelled . | . . . . . . . . . Allies | -11 -10 -9 -8 -7 -7 -7 -7 -6 -------- Run | Yrd Mat Mat Mat Fac Low Low Zio Pro Total Allies . | . . . . . . . . . Largest Group . | . . . . . . . . . Highest-Rated Group . | . . . . . . . . . Highest-Rated Ally . | . . . . . . . . . Total Orders . | . . . . . . . . . Ally Attacks . | . . . . . . . . . Total Damage . | . . . . . . . . . Kills . | . . . . . . . . . Allies Corrupted . | . . . . . . . . . Allies Melted . | . . . . . . . . . Intel | -11 -10 -9 -8 -7 -7 -7 -7 -6 ------- Run | Yrd Mat Mat Mat Fac Low Low Zio Pro Robot Analysis Total 1 | . 1 . . . . . . . Derelict Logs Recovered 3 | . . . . . 2 1 . . Drone Launches 1 | . . . . . . . 1 . Drone Recoveries 1 | . . . . . . . . 1 Exploration | -11 -10 -9 -8 -7 -7 -7 -7 -6 ------------- Run | Yrd Mat Mat Mat Fac Low Low Zio Pro Turns Passed 5243 | 67 890 818 147 93 837 1006 534 851 Spaces Moved 3600 | 50 514 430 120 95 618 676 462 635 Core 465 | 13 12 49 . . . . . 391 Treads . | . . . . . . . . . Legs 306 | . 304 2 . . . . . . Wheels 2829 | 37 198 379 120 95 618 676 462 244 Hover . | . . . . . . . . . Flight . | . . . . . . . . . Fastest Speed 50 | 50 50 100 100 93 93 115 115 50 Average Speed 104 | 83 104 116 100 93 99 127 115 75 Slowest Speed 250 | 100 150 250 100 93 130 130 115 200 Overloaded Moves . | . . . . . . . . . Propulsion Burnouts . | . . . . . . . . . Robots Hopped . | . . . . . . . . . Cave-ins Triggered . | . . . . . . . . . Exploration Rate (%) 49 | 4 80 47 17 2 75 77 62 79 Regions Visited 8 Branch Regions 4 Pre-discovered Areas 1 | . . . . . 1 . . . Known Exits Taken 7 | . 1 1 1 1 1 1 1 . Unknown Exits Taken 1 | 1 . . . . . . . . Scrap Searched 9 | . . . . . 2 4 1 2 Spaces Dug 12 | . . . . . 12 . . . Terrain Destroyed 166 | . . 77 . . 35 54 . . Melee . | . . . . . . . . . Projectile 1 | . . . . . . 1 . . AOE 165 | . . 77 . . 35 53 . . Terrain Rammed . | . . . . . . . . . Walls Destroyed . | . . . . . . . . . Machines Disabled . | . . . . . . . . . Actions | -11 -10 -9 -8 -7 -7 -7 -7 -6 --------- Run | Yrd Mat Mat Mat Fac Low Low Zio Pro Total 4728 | 71 778 587 137 99 820 763 464 1009 Wait 825 | . 191 55 7 . 183 21 . 368 Move 3592 | 49 513 429 119 94 617 675 461 635 Hop . | . . . . . . . . . Pick Up 45 | 10 8 5 3 1 5 10 2 1 Fast Attach 20 | . 9 7 . 1 1 2 . . Attach 34 | 6 4 4 1 3 2 12 . 2 Detach 4 | . . . . . . 2 . 2 Swap 24 | 2 5 7 2 . 4 3 1 . Drop 18 | 2 4 2 1 . . 8 . 1 Fire 164 | 2 44 77 4 . 8 29 . . Melee . | . . . . . . . . . Ram 1 | . . 1 . . . . . . Kick . | . . . . . . . . . Crush . | . . . . . . . . . Escape Stasis . | . . . . . . . . . Rewire . | . . . . . . . . . Trap 1 | . . . . . . 1 . . Miscellaneous . | . . . . . . . . . Route ------- -11/Scrapyard -10/Materials (discovered 4 exits: *Mat x3 / [*Min]) -9/Materials -8/Materials -7/Factory -7/Lower Caves -7/Lower Caves -7/Zion -6/Proximity Caves History --------- Turn | Location | Event 23 | -11/Scrapyard | Discovered new exit (range 15) 68 | -11/Scrapyard | Entered Materials 314 | -10/Materials | Build established: Mutant 376 | -10/Materials | Discovered new exit (range 16) 443 | -10/Materials | Discovered new exit (range 15) 517 | -10/Materials | Lost 4 parts (2n1u1w) 565 | -10/Materials | Discovered new exit (range 17) 650 | -10/Materials | Identified exit to Materials 936 | -10/Materials | Discovered exit to Materials (range 14) 958 | -10/Materials | Entered another Materials area 958 | -9/Materials | Evolved 2 slots: Utility x2 1448 | -9/Materials | Build established: Scavenger-Mutant 1735 | -9/Materials | Discovered new exit (range 13) 1765 | -9/Materials | Identified exit to Materials 1776 | -9/Materials | Entered another Materials area 1776 | -8/Materials | Evolved 2 slots: Propulsion x1, Weapon x1 1921 | -8/Materials | Discovered new exit (range 3) 1922 | -8/Materials | Identified exit to Factory 1923 | -8/Materials | Entered Factory 1923 | -7/Factory | Evolved 2 slots: Power x1, Utility x1 1996 | -7/Factory | Discovered new exit (range 16) 2015 | -7/Factory | Identified exit to Lower Caves 2016 | -7/Factory | Entered Lower Caves 2234 | -7/Lower Caves | Build established: Scavenger-Tank 2359 | -7/Lower Caves | Attracted the attention of an 0b10 checkpoint 2492 | -7/Lower Caves | Learned Factory terminal intel 2540 | -7/Lower Caves | Attracted the attention of an 0b10 outpost 2848 | -7/Lower Caves | Discovered new exit (range 5) 2851 | -7/Lower Caves | Identified exit to Lower Caves 2853 | -7/Lower Caves | Entered another Lower Caves area 2943 | -7/Lower Caves | Build established: Tank 2947 | -7/Lower Caves | Learned Factory trap positions 2996 | -7/Lower Caves | Found Prototype Device 3188 | -7/Lower Caves | Attracted the attention of an 0b10 base 3300 | -7/Lower Caves | Lost 5 parts (1p2u2w) 3540 | -7/Lower Caves | Build established: Scavenger-Tank 3549 | -7/Lower Caves | Learned location of 1 exit from Research 3549 | -7/Lower Caves | Learned 8 Research zone layouts 3788 | -7/Lower Caves | Discovered new exit (range 6) 3794 | -7/Lower Caves | Identified exit to Zion 3859 | -7/Lower Caves | Entered Zion 3909 | -7/Zion | System corruption cleaned by Quarantine Array 4047 | -7/Zion | Build established: Derelict-Mutant 4168 | -7/Zion | Given the Hacking Drone Bay 4177 | -7/Zion | Found Prototype Device 4178 | -7/Zion | Identified Hacking Drone Bay 4376 | -7/Zion | Discovered new exit (range 16) 4392 | -7/Zion | Identified exit to Proximity Caves 4393 | -7/Zion | Entered Proximity Caves 4393 | -6/Proximity Caves | Accompanied by 1 ally 4679 | -6/Proximity Caves | Attracted the attention of an 0b10 outpost 4766 | -6/Proximity Caves | Core integrity fell below 50% 4789 | -6/Proximity Caves | Identified Heart of Steel 4801 | -6/Proximity Caves | Lost 6 parts (1p2n2u1w) 5020 | -6/Proximity Caves | Build established: Mutant 5232 | -6/Proximity Caves | Attracted the attention of an 0b10 checkpoint 5236 | -6/Proximity Caves | Core integrity fell below 20% 5244 | -6/Proximity Caves | Destroyed by S-27 Virus with Autogun Last Messages --------------- 04730_ Shield Generator destroyed. 04730_ Imp. Ion Engine destroyed. 04733_ Critical hit (Burn: +50). 04746_ ZB-9WQ(S) suffers critical hit (Burn). 04747_ Propulsion Shielding destroyed. 04747_ Com. Wheel destroyed. 04752_ Titanium Leg destroyed. 04753_ Dropped Med. Storage Unit. 04770_ Mni. Grenade Launcher destroyed. 04789_ Identified Heart of Steel. 04790_ Acquired 10 matter. 05199_ Slug penetrates Wall. 05223_ Acquired 112 matter. 05232_ Y-54 Guardian: "INTERCEPTING UNREGISTERED DERELICT." 05238_ Searching scrap... 05238_ Found Enh. Flamer. 05238_ Found Mak. Terrain Scan Processor. 05238_ Found 34 Matter. 05239_ Acquired 34 matter. Map ----- +----------------------------------------------------+ | ??# #????#########??????????????????? | | ??## ## ###??# #?###??????????????? | | ?### ### ## #### ## #????? ????????? | | ##" #### ## # ???# ????????? | | " " #?# ## #??# ???????? | | " ### ## #?## ???????? | | ### ##### #?# ????????? | | #####???### #?# #?????????? | | #?????????## ### ## #??????????? | | #??????????# #?# ##?????????? | | #??????????# ### #?????????? | | =## ##?????????# #?????????????? | | [### ##?##?????# #?????????????? | | * ### ## ##??# ## ## !## #?????????????? | | ### % #??# ### ### #?##??????????????? | | #### ! #??# $ ?######s ## #??????????????? | | ??# #??# ????##s #??????????????? | | ??## #??# #???## ##?????????????? | | ???## ##??######??## ##????????????? | | ????# #??????????## #????????????? | | ????# ##??????????# ##????????????? | | ????# ######??????# ### ##?????????????? | | ???## ##?#???# ##?? #??????????????? | | ??## #?# ## #??? #?????????????? | | ?## #?# ##??? ????????????? | | ## #### ### #?# @##????? ???????????? | | # #???##?? ### #??????# ??????????? | | ## !=#????????? #?### #???????# ??????????? | | ?## !!#???????????????## ????????###???????????? | | ?## !!#????????????????## ??????????????????????? | | ## ##????????????????# ?????????????????????? | | ###??????????????# ?????????????????????? | | #??????????????## ????????????????????? | | #????????????????# ????????????????????? | | ###?????????????????###???????????????????? | | #?????????????????????????????????????????? | | #?????????????????????????????????????????? | | #?????????????????????????????????????????? | | ##????????????????????????????????????????? | | ##???????????????????????????????????????? | | ####????????????????????????????????????? | | ## ##???????????????????????????????????? | | ### #???????????????????????????????????? | | #?# #???????????????????????????????????? | | #??# #???????????????????????????????????? | | ???# #### ##??????????????????????????????????? | | ???####??# #??????????????????????????????????? | | ???????### ##?????????????????????????????????? | | ??????## #?????????????????????????????????? | | ??????# ##????????????????????????????????? | +----------------------------------------------------+ Best States ------------- Heat Dissipation 56 Energy Generation 19 Energy Capacity 415 Matter Stores 300 Matter Capacity 300 Sight Range 18 Robot Scan Range 14 Terrain Scan Density 10 Armor Coverage 225 Power Shielding 66 Propulsion Shielding 66 Evasion (%) 55 Recoil Reduction 1 Item Schematics ----------------- Imp. Launcher Guidance Computer | -7/Factory | Hacked Chainsword | -7/Zion | Archive Hpw. Shock Rifle | -7/Zion | Archive Hvy. Machine Gun | -7/Zion | Archive Gravmag System | -7/Zion | Archive Energy Well | -7/Zion | Archive Field Propulsion Drive | -7/Zion | Archive KE Penetrator | -7/Zion | Archive Imp. EM Pulse Cannon | -7/Zion | Archive Flexi-carbon Leg | -7/Zion | Archive Hvy. Laser | -7/Zion | Archive Thermic Laser | -7/Zion | Archive Dynamic Insulation System | -7/Zion | Archive Phase Cannon | -7/Zion | Archive Component Analysis Suite | -7/Zion | Archive Robot Schematics ------------------ L-41 Fighter | -7/Zion | Archive B-36 Bruiser | -7/Zion | Archive A-02 Transporter | -7/Zion | Archive Fabricated ------------ Nothing Alien Tech Used ----------------- None Achievements -------------- None Challenges ------------ None Game ------ Seed ShadeNodeStripper Manual? 0 Play Time 00:44:00 Cumulative 27.1 hours Start 2024.04.27 @ 13:36:12 End 2024.04.27 @ 14:16:49 Sessions 1 Manual Loads 0 Difficulty Rogue Special Mode None Game No. 37 Rogue 37 Adventurer 0 Explorer 0 Win Type - Total 1 Types 1/0/0/0/0/0/0/0/0 Lore% 27 Gallery% 34 Achievement% 29 Wizard Run 0 Options --------- Layout 1 ASCII 0 Keyboard 0 Movement Mouse Keybinds 0 Fullscreen 1 Font 24/Smallcaps Map View 50x35 Zoom Use 0% Tactical HUD 1 Map Filters NONE Filters NONE Steam 1 RUN: 7329b49f-c841-4bc4-827e-d07d8127c6c0